[Event "Swedish U16 Team Championship 2019 - Final"]
[Site "Molnlycke Kulturhus, Biblioteksgatan 2, Molnlycke, Sweden"]
[Date "2019.08.16"]
[Round "1.1"]
[White "Sorensen, Hampus"]
[Black "Bensryd, Hampus"]
[Result "1-0"]
[TimeControl "90 minutes + 30 seconds per move from move one."]
[WhiteTitle "FM"]
[WhiteElo "2356"]
[BlackElo "1907"]

1. c4 {[%clk 01:30:44]} {[%emt 00:00:15]} e5 {[%clk 01:30:19]} {[%emt
00:00:42]} 2. Nc3 {[%clk 01:30:10]} {[%emt 00:01:04]} Nc6 {[%clk 01:30:28]}
{[%emt 00:00:20]} 3. g3 {[%clk 01:29:58]} {[%emt 00:00:43]} f5 {[%clk
01:30:30]} {[%emt 00:00:27]} 4. Bg2 {[%clk 01:28:32]} {[%emt 00:01:57]} Nf6
{[%clk 01:30:35]} {[%emt 00:00:24]} 5. Nf3 {[%clk 01:27:02]} {[%emt 00:02:01]}
g6 {[%clk 01:29:05]} {[%emt 00:01:59]} 6. O-O {[%clk 01:26:34]} {[%emt
00:00:57]} Bg7 {[%clk 01:29:18]} {[%emt 00:00:18]} 7. a3 {[%clk 01:22:25]}
{[%emt 00:04:40]} a5 {[%clk 01:27:16]} {[%emt 00:02:31]} 8. b3 {[%clk
01:17:17]} {[%emt 00:05:39]} O-O {[%clk 01:25:03]} {[%emt 00:02:42]} 9. Bb2
{[%clk 01:17:44]} {[%emt 00:00:03]} d6 {[%clk 01:23:59]} {[%emt 00:01:34]} 10.
e3 {[%clk 01:16:53]} {[%emt 00:01:21]} h6 {[%clk 01:14:55]} {[%emt 00:09:34]}
11. d4 {[%clk 01:16:08]} {[%emt 00:01:15]} g5 {[%clk 01:10:15]} {[%emt
00:05:10]} 12. dxe5 {[%clk 01:09:22]} {[%emt 00:07:17]} dxe5 {[%clk 01:06:27]}
{[%emt 00:04:18]} 13. Qxd8 {[%clk 01:05:54]} {[%emt 00:03:57]} Rxd8 {[%clk
01:06:46]} {[%emt 00:00:12]} 14. Rfd1 {[%clk 01:05:49]} {[%emt 00:00:35]} Be6
{[%clk 01:01:32]} {[%emt 00:05:44]} 15. Ne1 {[%clk 01:05:10]} {[%emt 00:01:08]}
Rxd1 {[%clk 00:52:52]} {[%emt 00:09:09]} 16. Rxd1 {[%clk 01:05:23]} {[%emt
00:00:17]} Ne7 {[%clk 00:52:34]} {[%emt 00:00:48]} 17. Nd3 {[%clk 00:56:51]}
{[%emt 00:09:02]} e4 {[%clk 00:44:33]} {[%emt 00:08:31]} 18. Nc5 {[%clk
00:57:09]} {[%emt 00:00:12]} Bc8 {[%clk 00:44:31]} {[%emt 00:00:32]} 19. Nb5
{[%clk 00:53:33]} {[%emt 00:04:06]} Ne8 {[%clk 00:42:27]} {[%emt 00:02:34]} 20.
Bxg7 {[%clk 00:52:13]} {[%emt 00:01:50]} Kxg7 {[%clk 00:42:42]} {[%emt
00:00:15]} 21. Rd8 {[%clk 00:52:34]} {[%emt 00:00:09]} Kf7 {[%clk 00:41:56]}
{[%emt 00:01:15]} 22. Rxe8 {[%clk 00:52:00]} {[%emt 00:01:05]} 1-0

[Event "Swedish U16 Team Championship 2019 - Final"]
[Site "Molnlycke Kulturhus, Biblioteksgatan 2, Molnlycke, Sweden"]
[Date "2019.08.16"]
[Round "1.2"]
[White "Nord, Alexander"]
[Black "Trost, Edvin"]
[Result "0-1"]
[TimeControl "90 minutes + 30 seconds per move from move one."]
[WhiteElo "1881"]
[BlackElo "1951"]

1. d4 {[%clk 01:30:58]} {[%emt 00:00:02]} Nf6 {[%clk 01:30:47]} {[%emt
00:00:13]} 2. Nf3 {[%clk 01:31:24]} {[%emt 00:00:04]} e6 {[%clk 01:29:57]}
{[%emt 00:01:20]} 3. g3 {[%clk 01:31:51]} {[%emt 00:00:04]} b6 {[%clk
01:29:36]} {[%emt 00:00:50]} 4. Bg2 {[%clk 01:30:26]} {[%emt 00:01:55]} Bb7
{[%clk 01:30:01]} {[%emt 00:00:05]} 5. O-O {[%clk 01:30:20]} {[%emt 00:00:37]}
Be7 {[%clk 01:30:27]} {[%emt 00:00:04]} 6. c4 {[%clk 01:30:27]} {[%emt
00:00:24]} O-O {[%clk 01:30:34]} {[%emt 00:00:22]} 7. Nc3 {[%clk 01:30:29]}
{[%emt 00:00:28]} Ne4 {[%clk 01:30:44]} {[%emt 00:00:19]} 8. Qc2 {[%clk
01:29:58]} {[%emt 00:01:01]} Nxc3 {[%clk 01:30:09]} {[%emt 00:01:06]} 9. Qxc3
{[%clk 01:30:25]} {[%emt 00:00:02]} Na6 {[%clk 01:28:40]} {[%emt 00:02:00]} 10.
b3 {[%clk 01:21:59]} {[%emt 00:08:56]} c5 {[%clk 01:25:59]} {[%emt 00:03:11]}
11. Bb2 {[%clk 01:12:21]} {[%emt 00:10:09]} Bf6 {[%clk 01:23:37]} {[%emt
00:02:51]} 12. Rfd1 {[%clk 01:04:11]} {[%emt 00:08:39]} d5 {[%clk 01:20:35]}
{[%emt 00:03:32]} 13. cxd5 {[%clk 00:55:55]} {[%emt 00:08:47]} exd5 {[%clk
01:19:39]} {[%emt 00:01:25]} 14. Rac1 {[%clk 00:53:33]} {[%emt 00:02:52]} Rc8
{[%clk 01:10:42]} {[%emt 00:09:27]} 15. Qd2 {[%clk 00:53:04]} {[%emt 00:00:58]}
c4 {[%clk 01:09:14]} {[%emt 00:02:00]} 16. Ne5 {[%clk 00:44:40]} {[%emt
00:08:54]} Qe7 {[%clk 01:02:45]} {[%emt 00:06:58]} 17. f4 {[%clk 00:35:26]}
{[%emt 00:09:45]} b5 {[%clk 01:01:46]} {[%emt 00:01:29]} 18. Qa5 {[%clk
00:32:13]} {[%emt 00:03:42]} Bxe5 {[%clk 00:53:10]} {[%emt 00:09:06]} 19. fxe5
{[%clk 00:32:25]} {[%emt 00:00:18]} b4 {[%clk 00:47:32]} {[%emt 00:06:08]} 20.
bxc4 {[%clk 00:25:39]} {[%emt 00:07:17]} dxc4 {[%clk 00:47:37]} {[%emt
00:00:25]} 21. Qb5 {[%clk 00:25:44]} {[%emt 00:00:24]} Bxg2 {[%clk 00:42:29]}
{[%emt 00:05:38]} 22. Kxg2 {[%clk 00:26:13]} {[%emt 00:00:02]} Qe6 {[%clk
00:42:43]} {[%emt 00:00:15]} 23. d5 {[%clk 00:20:06]} {[%emt 00:06:36]} Qg4
{[%clk 00:42:40]} {[%emt 00:00:33]} 24. Bd4 {[%clk 00:18:48]} {[%emt 00:01:48]}
Qxe2+ {[%clk 00:41:44]} {[%emt 00:01:27]} 25. Kg1 {[%clk 00:19:03]} {[%emt
00:00:14]} Nc7 {[%clk 00:37:17]} {[%emt 00:04:57]} 26. Qxc4 {[%clk 00:11:14]}
{[%emt 00:08:18]} Qxc4 {[%clk 00:37:37]} {[%emt 00:00:11]} 27. Rxc4 {[%clk
00:11:43]} Nxd5 {[%clk 00:38:06]} {[%emt 00:00:01]} 28. Rxc8 {[%clk 00:08:47]}
{[%emt 00:03:26]} Rxc8 {[%clk 00:38:35]} 29. Bxa7 {[%clk 00:08:55]} {[%emt
00:00:22]} Nc3 {[%clk 00:38:28]} {[%emt 00:00:37]} 30. Rd2 {[%clk 00:08:57]}
{[%emt 00:00:28]} h6 {[%clk 00:37:34]} {[%emt 00:01:24]} 31. Rb2 {[%clk
00:06:43]} {[%emt 00:02:42]} Ra8 {[%clk 00:36:57]} {[%emt 00:01:08]} 32. Bb6
{[%clk 00:04:23]} {[%emt 00:02:50]} Nxa2 {[%clk 00:35:38]} {[%emt 00:01:50]} 33.
Bc5 {[%clk 00:04:18]} {[%emt 00:00:31]} Ra4 {[%clk 00:35:44]} {[%emt 00:00:27]}
34. Kg2 {[%clk 00:03:14]} {[%emt 00:01:34]} Kh7 {[%clk 00:35:24]} {[%emt
00:00:51]} 35. Kf3 {[%clk 00:02:50]} {[%emt 00:00:54]} Kg6 {[%clk 00:35:33]}
{[%emt 00:00:20]} 36. Ke4 {[%clk 00:02:12]} {[%emt 00:01:08]} b3+ {[%clk
00:34:44]} {[%emt 00:01:19]} 37. Kd3 {[%clk 00:01:32]} {[%emt 00:01:10]} Nc1+
{[%clk 00:34:19]} {[%emt 00:00:55]} 38. Kd2 {[%clk 00:00:50]} {[%emt 00:01:12]}
Rc4 {[%clk 00:34:39]} {[%emt 00:00:10]} 39. Bd6 {[%clk 00:00:55]} {[%emt
00:00:25]} h5 {[%clk 00:34:27]} {[%emt 00:00:41]} 40. Kd1 {[%clk 00:00:35]}
{[%emt 00:00:50]} Rc3 {[%clk 00:33:25]} {[%emt 00:01:31]} 41. Bb4 {[%clk
00:00:43]} {[%emt 00:00:24]} Rc6 {[%clk 00:32:17]} {[%emt 00:01:38]} 42. Bd2
{[%clk 00:00:53]} {[%emt 00:00:19]} Nd3 {[%clk 00:32:10]} {[%emt 00:00:37]} 43.
Rxb3 {[%clk 00:01:22]} {[%emt 00:00:02]} Nxe5 {[%clk 00:32:38]} {[%emt
00:00:02]} 44. h3 {[%clk 00:00:37]} {[%emt 00:01:15]} Nc4 {[%clk 00:32:28]}
{[%emt 00:00:39]} 45. Ke2 {[%clk 00:00:39]} {[%emt 00:00:28]} Re6+ {[%clk
00:32:54]} {[%emt 00:00:04]} 46. Kd3 {[%clk 00:00:37]} {[%emt 00:00:32]} Rd6+
{[%clk 00:32:31]} {[%emt 00:00:53]} 47. Kxc4 {[%clk 00:01:04]} {[%emt
00:00:03]} Rxd2 {[%clk 00:33:00]} 48. Rf3 {[%clk 00:01:02]} {[%emt 00:00:32]}
Rh2 {[%clk 00:33:04]} {[%emt 00:00:26]} 49. h4 {[%clk 00:01:15]} {[%emt
00:00:17]} Rd2 {[%clk 00:33:25]} {[%emt 00:00:09]} 50. Kc3 {[%clk 00:01:42]}
{[%emt 00:00:04]} Rd6 {[%clk 00:33:50]} {[%emt 00:00:04]} 51. Rf4 {[%clk
00:01:37]} {[%emt 00:00:35]} Rf6 {[%clk 00:34:09]} {[%emt 00:00:11]} 52. Rxf6+
{[%clk 00:00:47]} {[%emt 00:01:20]} Kxf6 {[%clk 00:34:33]} {[%emt 00:00:07]} 53.
Kd4 {[%clk 00:01:14]} {[%emt 00:00:04]} Kf5 {[%clk 00:34:59]} {[%emt 00:00:04]}
54. Ke3 {[%clk 00:01:40]} {[%emt 00:00:04]} Kg4 {[%clk 00:35:24]} {[%emt
00:00:04]} 55. Kf2 {[%clk 00:02:05]} {[%emt 00:00:05]} f5 {[%clk 00:35:47]}
{[%emt 00:00:07]} 56. Kg2 {[%clk 00:02:21]} {[%emt 00:00:15]} f4 {[%clk
00:36:11]} {[%emt 00:00:06]} 57. gxf4 {[%clk 00:02:40]} {[%emt 00:00:11]} Kxf4
{[%clk 00:36:36]} {[%emt 00:00:05]} 58. Kh3 {[%clk 00:02:54]} {[%emt 00:00:16]}
Ke5 {[%emt 00:00:11]} 0-1

[Event "Swedish U16 Team Championship 2019 - Final"]
[Site "Molnlycke Kulturhus, Biblioteksgatan 2, Molnlycke, Sweden"]
[Date "2019.08.16"]
[Round "1.3"]
[White "Svetic, Matija"]
[Black "Joensson, Oscar"]
[Result "1/2-1/2"]
[TimeControl "90 minutes + 30 seconds per move from move one."]
[WhiteElo "1775"]
[BlackElo "1790"]

1. e4 {[%clk 01:30:56]} {[%emt 00:00:03]} c6 {[%clk 01:30:55]} {[%emt
00:00:06]} 2. Nc3 {[%clk 01:30:58]} {[%emt 00:00:29]} d5 {[%clk 01:29:59]}
{[%emt 00:01:25]} 3. Nf3 {[%clk 01:30:54]} {[%emt 00:00:33]} Bg4 {[%clk
01:16:51]} {[%emt 00:13:38]} 4. h3 {[%clk 01:29:57]} {[%emt 00:01:27]} Bh5
{[%clk 01:15:00]} {[%emt 00:02:21]} 5. exd5 {[%clk 01:26:22]} {[%emt 00:04:05]}
cxd5 {[%clk 01:15:21]} {[%emt 00:00:10]} 6. g4 {[%clk 01:22:20]} {[%emt
00:04:32]} Bg6 {[%clk 01:15:43]} {[%emt 00:00:08]} 7. Ne5 {[%clk 01:22:00]}
{[%emt 00:00:50]} Nc6 {[%clk 01:11:26]} {[%emt 00:04:46]} 8. Nxg6 {[%clk
01:10:00]} {[%emt 00:12:30]} hxg6 {[%clk 01:11:29]} {[%emt 00:00:27]} 9. Bg2
{[%clk 01:10:16]} {[%emt 00:00:14]} e6 {[%clk 01:11:09]} {[%emt 00:00:50]} 10.
d4 {[%clk 01:00:30]} {[%emt 00:10:16]} Bd6 {[%clk 01:04:43]} {[%emt 00:06:56]}
11. Ne2 {[%clk 00:53:46]} {[%emt 00:07:13]} Qc7 {[%clk 01:00:02]} {[%emt
00:05:12]} 12. Be3 {[%clk 00:48:28]} {[%emt 00:05:48]} Nf6 {[%clk 00:56:31]}
{[%emt 00:04:00]} 13. c3 {[%clk 00:42:18]} {[%emt 00:06:41]} b5 {[%clk
00:52:48]} {[%emt 00:04:12]} 14. Qc1 {[%clk 00:37:49]} {[%emt 00:04:59]} Rc8
{[%clk 00:37:54]} {[%emt 00:15:23]} 15. Bf4 {[%clk 00:26:27]} {[%emt 00:11:53]}
Bxf4 {[%clk 00:35:11]} {[%emt 00:03:13]} 16. Qxf4 {[%clk 00:25:48]} {[%emt
00:01:09]} Qxf4 {[%clk 00:27:39]} {[%emt 00:08:02]} 17. Nxf4 {[%clk 00:26:04]}
{[%emt 00:00:13]} b4 {[%clk 00:25:46]} {[%emt 00:02:24]} 18. Kd2 {[%clk
00:18:10]} {[%emt 00:08:25]} 1/2-1/2

[Event "Swedish U16 Team Championship 2019 - Final"]
[Site "Molnlycke Kulturhus, Biblioteksgatan 2, Molnlycke, Sweden"]
[Date "2019.08.16"]
[Round "1.4"]
[White "Morell, Ludvig"]
[Black "Wikman, Viktor 2006"]
[Result "1-0"]
[TimeControl "90 minutes + 30 seconds per move from move one."]
[WhiteElo "1771"]
[BlackElo "1662"]

1. e4 {[%clk 01:30:40]} {[%emt 00:00:19]} e6 {[%clk 01:30:52]} {[%emt
00:00:08]} 2. d4 {[%clk 01:30:44]} {[%emt 00:00:26]} d5 {[%clk 01:31:08]}
{[%emt 00:00:12]} 3. Nd2 {[%clk 01:31:05]} {[%emt 00:00:10]} Nc6 {[%clk
01:30:08]} {[%emt 00:01:30]} 4. c3 {[%clk 01:30:39]} {[%emt 00:00:57]} e5
{[%clk 01:29:50]} {[%emt 00:00:48]} 5. exd5 {[%clk 01:28:11]} {[%emt 00:02:58]}
Qxd5 {[%clk 01:29:33]} {[%emt 00:00:47]} 6. Ngf3 {[%clk 01:16:40]} {[%emt
00:12:01]} exd4 {[%clk 01:24:48]} {[%emt 00:05:16]} 7. Bc4 {[%clk 01:15:53]}
{[%emt 00:01:16]} Qd8 {[%clk 01:23:42]} {[%emt 00:01:37]} 8. cxd4 {[%clk
01:01:21]} {[%emt 00:15:01]} Nxd4 {[%clk 01:18:48]} {[%emt 00:05:24]} 9. Qa4+
{[%clk 00:51:49]} {[%emt 00:09:58]} Nc6 {[%clk 01:15:43]} {[%emt 00:03:40]} 10.
O-O {[%clk 00:40:08]} {[%emt 00:12:10]} Bd6 {[%clk 01:13:52]} {[%emt 00:02:21]}
11. Ne4 {[%clk 00:38:38]} {[%emt 00:01:59]} Nge7 {[%clk 01:10:05]} {[%emt
00:04:18]} 12. Nfg5 {[%clk 00:30:55]} {[%emt 00:08:13]} O-O {[%clk 01:03:11]}
{[%emt 00:07:23]} 13. Nxf7 {[%clk 00:29:01]} {[%emt 00:02:24]} Rxf7 {[%clk
01:03:29]} {[%emt 00:00:13]} 14. Ng5 {[%clk 00:29:06]} {[%emt 00:00:25]} Ne5
{[%clk 01:03:18]} {[%emt 00:00:41]} 15. Nxf7 {[%clk 00:29:27]} {[%emt
00:00:09]} Nxf7 {[%clk 01:03:41]} {[%emt 00:00:06]} 16. Qb3 {[%clk 00:29:51]}
{[%emt 00:00:05]} Qf8 {[%clk 01:02:19]} {[%emt 00:01:53]} 17. Rd1 {[%clk
00:21:56]} {[%emt 00:08:20]} a6 {[%clk 00:58:20]} {[%emt 00:04:34]} 18. Bf4
{[%clk 00:17:50]} {[%emt 00:04:37]} Bg4 {[%clk 00:49:37]} {[%emt 00:09:12]} 19.
Bxf7+ {[%clk 00:14:33]} {[%emt 00:03:46]} Qxf7 {[%clk 00:49:54]} {[%emt
00:00:14]} 20. Qxf7+ {[%clk 00:14:19]} {[%emt 00:00:43]} Kxf7 {[%clk 00:46:44]}
{[%emt 00:03:40]} 21. Bxd6 {[%clk 00:14:12]} {[%emt 00:00:38]} Bxd1 {[%clk
00:45:27]} {[%emt 00:01:46]} 22. Bxe7 {[%clk 00:14:35]} {[%emt 00:00:08]} Re8
{[%clk 00:39:32]} {[%emt 00:06:24]} 23. Rxd1 {[%clk 00:14:33]} {[%emt
00:00:33]} Rxe7 {[%clk 00:39:56]} {[%emt 00:00:06]} 24. Kf1 {[%clk 00:14:54]}
{[%emt 00:00:09]} b5 {[%clk 00:39:12]} {[%emt 00:01:15]} 25. Rc1 {[%clk
00:14:29]} {[%emt 00:00:55]} Ke8 {[%clk 00:37:29]} {[%emt 00:02:13]} 26. Rc6
{[%clk 00:13:32]} {[%emt 00:01:27]} Kd7 {[%clk 00:35:15]} {[%emt 00:02:45]} 27.
Rxa6 {[%clk 00:13:52]} {[%emt 00:00:09]} Re4 {[%clk 00:34:33]} {[%emt
00:01:12]} 28. Ra5 {[%clk 00:13:12]} {[%emt 00:01:08]} Kc6 {[%clk 00:34:25]}
{[%emt 00:00:39]} 29. f3 {[%clk 00:12:47]} {[%emt 00:00:56]} Rc4 {[%clk
00:34:40]} {[%emt 00:00:14]} 30. b3 {[%clk 00:12:18]} {[%emt 00:00:59]} Rc2
{[%clk 00:34:18]} {[%emt 00:00:52]} 31. h4 {[%clk 00:04:52]} {[%emt 00:07:56]}
Kb6 {[%clk 00:31:13]} {[%emt 00:03:34]} 32. Ra8 {[%clk 00:02:52]} {[%emt
00:02:30]} Kb7 {[%clk 00:29:25]} {[%emt 00:02:18]} 33. Rh8 {[%clk 00:02:05]}
{[%emt 00:01:18]} h6 {[%clk 00:28:46]} {[%emt 00:01:09]} 34. Rh7 {[%clk
00:02:33]} {[%emt 00:00:02]} g5 {[%clk 00:28:50]} {[%emt 00:00:26]} 35. Rxh6
{[%clk 00:02:51]} {[%emt 00:00:13]} gxh4 {[%clk 00:29:15]} {[%emt 00:00:05]} 36.
Rxh4 {[%clk 00:03:15]} {[%emt 00:00:05]} Rxa2 {[%clk 00:29:38]} {[%emt
00:00:07]} 37. g4 {[%clk 00:03:15]} {[%emt 00:00:30]} Rb2 {[%clk 00:29:44]}
{[%emt 00:00:24]} 38. g5 {[%clk 00:03:31]} {[%emt 00:00:14]} Rxb3 {[%clk
00:30:09]} {[%emt 00:00:05]} 39. Ke2 {[%clk 00:03:20]} {[%emt 00:00:41]} Rb2+
{[%clk 00:29:28]} {[%emt 00:01:11]} 40. Kd1 {[%clk 00:02:50]} {[%emt 00:01:00]}
Ra2 {[%clk 00:26:50]} {[%emt 00:03:08]} 41. g6 {[%clk 00:02:25]} {[%emt
00:00:56]} Kc6 {[%clk 00:26:36]} {[%emt 00:00:44]} 42. g7 {[%clk 00:02:37]}
{[%emt 00:00:17]} Rg2 {[%clk 00:24:36]} {[%emt 00:02:30]} 43. Rg4 {[%clk
00:03:02]} {[%emt 00:00:06]} Kd5 {[%emt 00:00:36]} 1-0

[Event "Swedish U16 Team Championship 2019 - Final"]
[Site "Molnlycke Kulturhus, Biblioteksgatan 2, Molnlycke, Sweden"]
[Date "2019.08.16"]
[Round "1.5"]
[White "Backlund, Elias"]
[Black "Johansson, William 2007"]
[Result "1/2-1/2"]
[TimeControl "90 minutes + 30 seconds per move from move one."]
[WhiteElo "1603"]
[BlackElo "1682"]

1. d4 {[%clk 01:30:57]} {[%emt 00:00:03]} Nf6 {[%clk 01:30:49]} {[%emt
00:00:11]} 2. c4 {[%clk 01:31:22]} {[%emt 00:00:05]} e6 {[%clk 01:31:10]}
{[%emt 00:00:08]} 3. Nc3 {[%clk 01:31:47]} {[%emt 00:00:05]} Bb4 {[%clk
01:31:29]} {[%emt 00:00:11]} 4. Qc2 {[%clk 01:32:01]} {[%emt 00:00:16]} d5
{[%clk 01:31:33]} {[%emt 00:00:27]} 5. Bg5 {[%clk 01:31:54]} {[%emt 00:00:37]}
h6 {[%clk 01:31:20]} {[%emt 00:00:42]} 6. Bh4 {[%clk 01:27:44]} {[%emt
00:04:40]} Nbd7 {[%clk 01:24:56]} {[%emt 00:06:54]} 7. e3 {[%clk 01:26:47]}
{[%emt 00:01:27]} c5 {[%clk 01:18:55]} {[%emt 00:06:32]} 8. a3 {[%clk
01:20:59]} {[%emt 00:06:18]} Bxc3+ {[%clk 01:18:58]} {[%emt 00:00:26]} 9. Qxc3
{[%clk 01:20:53]} {[%emt 00:00:36]} cxd4 {[%clk 01:06:47]} {[%emt 00:12:41]} 10.
Qxd4 {[%clk 01:18:37]} {[%emt 00:02:46]} Qc7 {[%clk 00:53:34]} {[%emt
00:13:43]} 11. cxd5 {[%clk 01:14:20]} {[%emt 00:04:47]} exd5 {[%emt 00:06:45]}
12. Nf3 {[%clk 01:08:20]} {[%emt 00:00:58]} O-O {[%clk 00:48:05]} {[%emt
00:05:15]} 13. Be2 {[%clk 01:00:39]} {[%emt 00:08:12]} Re8 {[%clk 00:43:15]}
{[%emt 00:05:20]} 14. O-O {[%clk 00:56:17]} {[%emt 00:04:51]} Re4 {[%clk
00:42:18]} {[%emt 00:01:27]} 15. Qd2 {[%clk 00:48:40]} {[%emt 00:08:07]} Qb6
{[%clk 00:20:51]} {[%emt 00:21:58]} 16. Bd3 {[%clk 00:44:57]} {[%emt 00:04:13]}
Re8 {[%clk 00:16:44]} {[%emt 00:04:38]} 17. b4 {[%clk 00:40:40]} {[%emt
00:04:47]} Ne4 {[%clk 00:15:12]} {[%emt 00:02:02]} 18. Bxe4 {[%clk 00:36:01]}
{[%emt 00:05:09]} dxe4 {[%clk 00:15:27]} {[%emt 00:00:15]} 19. Nd4 {[%clk
00:34:38]} {[%emt 00:01:51]} Ne5 {[%clk 00:14:42]} {[%emt 00:01:17]} 20. Bg3
{[%clk 00:29:03]} {[%emt 00:06:05]} Qg6 {[%clk 00:12:54]} {[%emt 00:02:19]} 21.
Ne2 {[%clk 00:19:25]} {[%emt 00:10:06]} Nd3 {[%clk 00:11:27]} {[%emt 00:01:58]}
22. Nf4 {[%clk 00:16:31]} {[%emt 00:03:24]} Nxf4 {[%clk 00:11:47]} {[%emt
00:00:11]} 23. Bxf4 {[%clk 00:16:29]} {[%emt 00:00:31]} Bg4 {[%clk 00:10:49]}
{[%emt 00:01:28]} 24. Rfc1 {[%clk 00:12:41]} {[%emt 00:04:18]} Rad8 {[%clk
00:10:06]} {[%emt 00:01:13]} 25. Qb2 {[%clk 00:09:39]} {[%emt 00:03:31]} Rd7
{[%clk 00:08:45]} {[%emt 00:01:52]} 26. Kf1 {[%clk 00:05:30]} {[%emt 00:04:38]}
Red8 {[%clk 00:08:15]} {[%emt 00:01:00]} 27. Bg3 {[%clk 00:03:12]} {[%emt
00:02:49]} Rd2 {[%clk 00:07:32]} {[%emt 00:01:12]} 28. Qc3 {[%clk 00:02:17]}
{[%emt 00:01:25]} Qa6+ {[%clk 00:06:51]} {[%emt 00:01:12]} 29. Kg1 {[%clk
00:02:20]} {[%emt 00:00:26]} Qe2 {[%clk 00:06:24]} {[%emt 00:00:56]} 30. h3
{[%clk 00:01:50]} {[%emt 00:01:01]} R8d3 {[%clk 00:05:51]} {[%emt 00:01:03]} 31.
Qc5 {[%clk 00:01:09]} {[%emt 00:01:11]} Be6 {[%clk 00:04:17]} {[%emt 00:02:04]}
32. Re1 {[%clk 00:01:23]} {[%emt 00:00:16]} Rd1 {[%clk 00:04:01]} {[%emt
00:00:47]} 33. Raxd1 {[%clk 00:01:41]} {[%emt 00:00:12]} Rxd1 {[%clk 00:04:19]}
{[%emt 00:00:11]} 34. Rxd1 {[%clk 00:02:04]} {[%emt 00:00:07]} Qxd1+ {[%clk
00:04:40]} {[%emt 00:00:08]} 35. Kh2 {[%clk 00:02:20]} {[%emt 00:00:15]} Qa4
{[%clk 00:04:52]} {[%emt 00:00:18]} 36. Qc3 {[%clk 00:01:22]} {[%emt 00:01:28]}
a6 {[%clk 00:04:52]} {[%emt 00:00:30]} 37. Bd6 {[%clk 00:01:32]} {[%emt
00:00:20]} Qb5 {[%clk 00:03:31]} {[%emt 00:01:51]} 38. Qc5 {[%clk 00:01:15]}
{[%emt 00:00:47]} Qe2 {[%clk 00:03:39]} {[%emt 00:00:22]} 39. Bg3 {[%clk
00:01:29]} {[%emt 00:00:15]} Qd3 {[%clk 00:03:20]} {[%emt 00:00:50]} 40. Qd4
{[%clk 00:00:56]} {[%emt 00:01:03]} Qxa3 {[%clk 00:01:56]} {[%emt 00:01:54]} 41.
Qxe4 {[%clk 00:01:15]} {[%emt 00:00:11]} b5 {[%clk 00:02:16]} {[%emt 00:00:09]}
42. Qa8+ {[%clk 00:00:59]} {[%emt 00:00:46]} Kh7 {[%clk 00:02:42]} {[%emt
00:00:05]} 43. Qe4+ {[%clk 00:01:23]} {[%emt 00:00:07]} g6 {[%clk 00:02:57]}
{[%emt 00:00:14]} 44. Bd6 {[%clk 00:01:16]} {[%emt 00:00:37]} Qb2 {[%clk
00:01:41]} {[%emt 00:01:47]} 45. Be5 {[%clk 00:01:14]} {[%emt 00:00:31]} Qc1
{[%clk 00:01:21]} {[%emt 00:00:50]} 46. Qa8 {[%clk 00:01:29]} {[%emt 00:00:15]}
Bc8 {[%clk 00:01:38]} {[%emt 00:00:13]} 47. Qd5 {[%clk 00:00:55]} {[%emt
00:01:04]} Be6 {[%clk 00:00:53]} {[%emt 00:01:15]} 48. Qd8 {[%clk 00:01:12]}
{[%emt 00:00:13]} Qc8 {[%clk 00:01:16]} {[%emt 00:00:06]} 49. Qf6 {[%clk
00:01:18]} {[%emt 00:00:24]} Qf8 {[%clk 00:01:06]} {[%emt 00:00:40]} 50. Bc3
{[%clk 00:01:26]} {[%emt 00:00:22]} Bc8 {[%clk 00:00:59]} {[%emt 00:00:37]}
1/2-1/2